bitfinex/quotes_BTCUSD_20240823
["timestamp","ask_amount","ask_price","bid_price","bid_amount"]
[1724443323480,0.0018111,63705.0,63704.0,0.009064]
[1724443323709,0.0246136,63708.0,63704.0,0.009064]
[1724443324223,0.0296136,63708.0,63704.0,0.009064]
[1724443324687,0.0246136,63708.0,63704.0,0.009064]
[1724443325536,0.0256136,63708.0,63704.0,0.009064]
[1724443326148,0.0246136,63708.0,63704.0,0.009064]
[1724443326560,0.00100002,63707.0,63704.0,0.009064]
[1724443326788,0.00090861,63707.0,63704.0,0.009064]
[1724443326997,0.001,63705.0,63704.0,0.009064]
[1724443327449,0.00090861,63707.0,63704.0,0.009064]
[1724443327904,0.00390861,63707.0,63704.0,0.009064]
[1724443328378,0.00090861,63707.0,63704.0,0.009064]
[1724443328607,0.001,63705.0,63704.0,0.009064]
[1724443328818,0.001,63705.0,63704.0,0.25856698]
[1724443328998,0.001,63705.0,63704.0,0.25556698]
[1724443329552,0.001,63705.0,63704.0,0.25856698]
[1724443329755,0.00290861,63707.0,63704.0,0.094564]
[1724443330629,0.00290861,63707.0,63704.0,0.25856698]
[1724443330830,0.00090861,63707.0,63704.0,0.25556698]
[1724443331003,0.001,63705.0,63704.0,0.25656698]
[1724443331408,0.001,63705.0,63704.0,0.25556698]
[1724443331616,0.001,63705.0,63704.0,0.25656698]
[1724443331819,0.001,63705.0,63704.0,0.010064]
[1724443331999,0.156973,63705.0,63704.0,0.009064]
[1724443332199,0.156973,63705.0,63704.0,0.010064]
[1724443332200,0.47192,63705.0,63704.0,0.010064]
[1724443332395,0.157973,63705.0,63704.0,0.010064]
[1724443332599,0.001,63705.0,63704.0,0.010064]
[1724443332807,0.47192,63705.0,63704.0,0.010064]
[1724443333007,0.785867,63705.0,63704.0,0.010064]
[1724443333207,0.78488,63704.0,63703.0,0.000824]
[1724443333433,0.86158,63704.0,63703.0,0.000824]
[1724443333598,1.175532,63704.0,63703.0,0.000824]
[1724443333792,1.65348698,63704.0,63703.0,0.000824]
[1724443334403,1.65348698,63704.0,63703.0,0.001824]
[1724443334608,1.90896397,63704.0,63703.0,0.001824]
[1724443334876,1.90896397,63704.0,63681.0,0.0773]
[1724443334877,0.313996,63695.0,63681.0,0.0773]
[1724443335092,0.0804,63693.0,63674.0,0.56869154]
[1724443335254,0.062,63688.0,63675.0,0.16400298]
[1724443335450,0.15703,63683.0,63675.0,0.16400298]
[1724443335885,0.157025,63684.0,63675.0,0.16400298]
[1724443336226,0.157028,63683.0,63675.0,0.16400298]
[1724443336324,0.062,63688.0,63674.0,0.0764]
[1724443336325,0.157044,63677.0,63674.0,0.0764]
[1724443336690,0.0804,63676.0,63671.0,0.00824]
[1724443336791,0.314076,63679.0,63671.0,0.00824]
[1724443337019,0.314071,63680.0,63671.0,0.00824]
[1724443337221,0.314067,63681.0,63671.0,0.00824]
[1724443337472,0.157041,63678.0,63671.0,0.00824]
[1724443337717,0.157038,63679.0,63671.0,0.00824]
[1724443337969,0.315055,63684.0,63671.0,0.00824]
[1724443337970,0.1424,63688.0,63672.0,0.0764]
[1724443338220,0.157041,63678.0,63672.0,0.0764]
[1724443338475,0.315074,63680.0,63671.0,0.00824]
[1724443338476,0.157042,63677.0,63671.0,0.00824]
[1724443338721,0.314074,63680.0,63671.0,0.00824]
[1724443338954,0.157039,63679.0,63671.0,0.00824]
[1724443339183,0.157041,63678.0,63671.0,0.00824]
[1724443339429,0.002,63679.0,63671.0,0.00824]
[1724443339430,0.159037,63679.0,63671.0,0.00824]
[1724443339721,0.157044,63677.0,63671.0,0.00824]
[1724443340363,0.00100002,63676.0,63671.0,0.00824]
[1724443340783,0.157054,63672.0,63671.0,0.00824]
[1724443341011,0.02462514,63678.0,63672.0,0.1447]
[1724443341209,0.02462514,63678.0,63673.0,0.16400298]
[1724443341423,0.02462514,63678.0,63677.0,0.157042]
[1724443341572,0.02462514,63678.0,63677.0,0.24260298]
[1724443341789,0.02462514,63678.0,63677.0,0.71372998]
[1724443342001,0.02462514,63678.0,63677.0,0.24260298]
[1724443342199,0.02462514,63678.0,63677.0,0.39964498]
[1724443342584,0.02462514,63678.0,63677.0,0.24260298]
[1724443343271,0.02462514,63678.0,63677.0,0.39964498]
[1724443343272,0.02562514,63678.0,63677.0,0.39964498]
[1724443343479,0.02562514,63678.0,63677.0,1.40769998]
[1724443343685,0.02562514,63678.0,63677.0,1.43069998]
[1724443343887,0.00090861,63707.0,63699.0,0.1449]
[1724443344090,0.00090861,63707.0,63700.0,0.16400298]
[1724443345304,0.00090861,63707.0,63700.0,0.16500298]
[1724443345909,0.00090861,63707.0,63701.0,0.08103933]
[1724443346258,0.00090861,63707.0,63706.0,0.156971]
[1724443346437,0.00090861,63707.0,63706.0,0.86978398]
[1724443346609,0.00090861,63707.0,63706.0,0.71281298]
[1724443346822,0.00190861,63707.0,63706.0,1.49766798]
[1724443347026,0.00290861,63707.0,63706.0,1.56606798]
[1724443347247,0.00290861,63707.0,63706.0,1.90500998]
[1724443347248,0.00190861,63707.0,63706.0,1.90500998]
[1724443347446,0.02461857,63709.0,63706.0,1.90500998]
[1724443347447,0.02461857,63709.0,63708.0,1.247062]
[1724443347648,0.02461857,63709.0,63708.0,2.32089698]
[1724443348202,0.00090861,63729.0,63726.0,0.156919]
[1724443348401,0.00090861,63729.0,63718.0,0.0613]
[1724443348402,0.00090861,63729.0,63728.0,0.156916]
[1724443348603,0.00090861,63729.0,63728.0,0.7948068]
[1724443348732,0.00090861,63729.0,63728.0,0.47075]
[1724443348941,0.24032261,63729.0,63728.0,0.47075]
[1724443349140,1.28342039,63729.0,63728.0,0.47075]
[1724443349361,1.59824825,63729.0,63728.0,0.47075]
[1724443349573,1.86225123,63729.0,63728.0,0.47075]
[1724443350040,1.86125123,63729.0,63728.0,0.47075]
[1724443350247,2.21607923,63729.0,63728.0,0.39897591]
[1724443350469,2.40566647,63729.0,63728.0,0.32358235]
[1724443350672,0.0836,63706.0,63696.0,0.0813]
[1724443350897,0.0836,63706.0,63692.0,0.55359154]
[1724443350898,0.156989,63699.0,63692.0,0.55359154]
[1724443351076,0.00100002,63705.0,63693.0,0.16400298]
[1724443351275,0.0614,63702.0,63691.0,0.0786]
[1724443351491,0.0614,63702.0,63685.0,0.0636]
[1724443351492,0.00100002,63701.0,63685.0,0.0636]
[1724443351694,0.00100002,63701.0,63686.0,0.0798]
[1724443351913,0.00100002,63701.0,63680.0,0.0798]
[1724443351914,0.157008,63691.0,63680.0,0.0798]
[1724443352032,0.0614,63702.0,63692.0,0.001]
[1724443352033,0.157003,63693.0,63692.0,0.001]
[1724443352236,0.471009,63693.0,63692.0,0.001]
[1724443352643,0.313995,63696.0,63692.0,0.001]
[1724443352980,0.02462002,63693.0,63692.0,0.001]
[1724443353158,0.02462002,63693.0,63692.0,0.24480298]
[1724443353364,0.02462002,63693.0,63686.0,0.0798]
[1724443353563,0.02462002,63693.0,63687.0,0.16400298]
[1724443354363,0.02562002,63693.0,63687.0,0.16400298]
[1724443354989,0.02562002,63693.0,63687.0,0.1671429]
[1724443355183,0.02462002,63693.0,63687.0,0.1671429]
[1724443356014,0.02462002,63693.0,63687.0,0.3241579]
[1724443356236,0.02562002,63693.0,63687.0,0.1671429]
[1724443356878,0.02662002,63693.0,63687.0,0.16400298]
[1724443357031,0.02662002,63693.0,63680.0,0.0824]
[1724443357225,0.157006,63692.0,63681.0,0.16400298]
[1724443357433,0.02662002,63693.0,63681.0,0.16400298]
[1724443357639,0.06430002,63692.0,63674.0,0.0824]
[1724443357837,0.157017,63688.0,63675.0,0.65629452]
[1724443358036,0.157018,63687.0,63675.0,0.16400298]
[1724443358336,0.157014,63689.0,63675.0,0.16400298]
[1724443358538,0.0633,63692.0,63675.0,0.16400298]
[1724443358539,0.0246217,63685.0,63675.0,0.16400298]
[1724443358943,0.03386527,63684.0,63675.0,0.16714358]
[1724443359158,0.0246217,63685.0,63684.0,0.157025]
[1724443359387,0.0246217,63685.0,63684.0,0.24690298]
[1724443359600,0.0246217,63685.0,63684.0,0.31190298]
[1724443359803,0.0246217,63685.0,63684.0,0.46892798]
[1724443360414,0.0246217,63685.0,63684.0,0.78297798]
[1724443360788,0.0256217,63685.0,63684.0,0.78297798]
[1724443361237,0.0266217,63685.0,63684.0,0.31190298]
[1724443361644,0.0266217,63685.0,63684.0,0.24690298]
[1724443361851,0.0266217,63685.0,63684.0,0.71797798]
[1724443362055,0.0266217,63685.0,63684.0,0.71897798]
[1724443362281,0.0276217,63685.0,63684.0,1.41397798]
[1724443362487,0.003,63685.0,63684.0,1.85102798]
[1724443362692,0.002,63685.0,63684.0,1.85302798]
[1724443362866,0.02461651,63690.0,63689.0,1.102087]
[1724443363107,0.02461651,63690.0,63689.0,1.53308998]
[1724443363309,0.55525192,63719.0,63704.0,0.0791]
[1724443363310,0.04683546,63718.0,63704.0,0.0791]
[1724443363523,0.04683546,63718.0,63693.0,0.002]
[1724443363524,0.04683546,63723.0,63706.0,0.24310298]
[1724443363727,0.11708866,63728.0,63706.0,0.24310298]
[1724443363932,0.02461113,63715.0,63714.0,0.236051]
[1724443364138,0.00090861,63729.0,63715.0,0.156948]
[1724443364340,0.00090861,63729.0,63714.0,0.62190498]
[1724443364341,0.00090861,63729.0,63720.0,0.156935]
[1724443364542,0.00090861,63729.0,63714.0,0.144]
[1724443364543,0.00090861,63729.0,63721.0,0.16400298]
[1724443364746,0.0246064,63726.0,63721.0,0.16400298]
[1724443365157,0.0246064,63726.0,63721.0,0.16714123]
[1724443365771,0.0246064,63726.0,63721.0,0.16400298]
[1724443366479,0.0246064,63726.0,63717.0,0.240343]
[1724443366480,0.156925,63725.0,63717.0,0.0834]
[1724443366676,0.0256064,63726.0,63717.0,0.0834]
[1724443366677,0.0256064,63726.0,63720.0,0.008]
[1724443366880,0.0256064,63726.0,63718.0,0.16714149]
[1724443366881,0.0256064,63726.0,63721.0,0.15900298]
[1724443367324,0.0266064,63726.0,63721.0,0.17000298]
[1724443367536,0.0266064,63726.0,63721.0,0.15900298]
[1724443367740,0.0256064,63726.0,63721.0,0.15900298]
[1724443368380,0.0256064,63726.0,63717.0,0.0874]
[1724443368583,0.1825294,63726.0,63718.0,0.16400298]
[1724443368794,0.0256064,63726.0,63718.0,0.16400298]
[1724443368998,0.0256064,63726.0,63719.0,0.00313851]
[1724443368999,0.0266064,63726.0,63719.0,0.00313851]
[1724443369204,0.0256064,63726.0,63720.0,0.16400298]
[1724443369408,0.0256064,63726.0,63721.0,0.008]
[1724443369669,0.0246064,63726.0,63722.0,0.16400298]
[1724443369905,0.0256064,63726.0,63722.0,0.16400298]
[1724443370077,0.0266064,63726.0,63722.0,0.16400298]
[1724443370686,0.0266064,63726.0,63717.0,0.0834]
[1724443370828,0.0276064,63726.0,63721.0,0.01]
[1724443371025,0.0266064,63726.0,63721.0,0.01]
[1724443371289,0.0276064,63726.0,63721.0,0.01]
[1724443372061,0.0276064,63726.0,63718.0,0.16400298]
[1724443372062,0.0256064,63726.0,63718.0,0.16400298]
[1724443372483,0.0266064,63726.0,63722.0,0.01]
[1724443372832,0.0266064,63726.0,63718.0,0.16400298]
[1724443372833,0.0246064,63726.0,63718.0,0.16400298]
[1724443373256,0.0256064,63726.0,63721.0,0.01]
[1724443373463,0.1149064,63726.0,63718.0,0.16400298]
[1724443373679,0.156932,63722.0,63718.0,0.16400298]
[1724443373883,0.1149064,63726.0,63722.0,0.01]
[1724443373884,0.224527,63724.0,63722.0,0.01]
[1724443374089,0.224527,63724.0,63712.0,0.0894]
[1724443374090,0.156928,63724.0,63713.0,0.16400298]
[1724443374316,0.0266064,63726.0,63713.0,0.16400298]
[1724443374601,0.156929,63723.0,63713.0,0.16400298]
[1724443375082,0.001,63722.0,63713.0,0.16400298]
[1724443375593,0.156929,63723.0,63721.0,0.01]
[1724443375853,0.157929,63723.0,63713.0,0.16400298]
[1724443376101,0.08102284,63722.0,63713.0,0.17200298]
[1724443376336,0.002,63723.0,63713.0,0.17282798]
[1724443376573,0.15893,63723.0,63713.0,0.17282798]
[1724443377077,0.15793,63723.0,63713.0,0.16482798]
[1724443377330,0.157932,63722.0,63713.0,0.17382798]
[1724443377532,0.002,63722.0,63713.0,0.17382798]
[1724443377742,0.158932,63722.0,63713.0,0.17382798]
[1724443377947,0.157932,63722.0,63713.0,0.17382798]
[1724443378648,0.156932,63722.0,63713.0,0.16482798]
[1724443378873,0.156939,63719.0,63713.0,0.17282798]
[1724443379104,0.156935,63721.0,63713.0,0.17282798]
[1724443379303,0.156935,63721.0,63713.0,0.16482798]
[1724443379559,0.002,63722.0,63713.0,0.17382798]
[1724443379835,0.02460823,63720.0,63713.0,0.009825]
[1724443380047,0.156951,63714.0,63713.0,0.009825]
[1724443380252,0.470853,63714.0,63713.0,0.000825]
[1724443380469,0.0903,63719.0,63713.0,0.012825]
[1724443380674,0.313885,63718.0,63713.0,0.012825]
[1724443380877,0.15695,63715.0,63713.0,0.012825]
[1724443381107,0.784755,63714.0,63713.0,0.012825]
[1724443381313,0.0913,63719.0,63713.0,0.012825]
[1724443381314,0.0903,63719.0,63713.0,0.012825]
[1724443381512,0.001,63714.0,63713.0,0.012825]
[1724443381735,0.001,63714.0,63713.0,0.24682798]
[1724443381935,0.02460823,63720.0,63713.0,0.24682798]
[1724443382139,0.03160823,63720.0,63714.0,0.22640298]
[1724443382460,0.03160823,63720.0,63714.0,0.22540298]
[1724443382646,0.02460823,63720.0,63714.0,0.22540298]
[1724443383877,0.02560823,63720.0,63714.0,0.22540298]
[1724443384209,0.02460823,63720.0,63714.0,0.22540298]
[1724443384548,0.02560823,63720.0,63714.0,0.22540298]
[1724443385179,0.02460823,63720.0,63714.0,0.22540298]
[1724443385590,0.02560823,63720.0,63714.0,0.22540298]
[1724443385789,0.02560823,63720.0,63714.0,0.16300298]
[1724443386124,0.156939,63719.0,63714.0,0.16300298]
[1724443386751,0.313879,63719.0,63714.0,0.009]
[1724443386955,0.156941,63718.0,63714.0,0.009]
[1724443387168,0.156941,63718.0,63713.0,0.000825]
[1724443387452,0.02460823,63720.0,63714.0,0.16400298]
[1724443387954,0.001,63719.0,63714.0,0.16400298]
[1724443388337,0.02460823,63720.0,63714.0,0.16400298]
[1724443388535,0.001,63719.0,63714.0,0.17400298]
[1724443389423,0.02560823,63720.0,63714.0,0.16482798]
[1724443389627,0.02660823,63720.0,63714.0,0.17382798]
[1724443389829,0.02751574,63720.0,63714.0,0.17382798]
[1724443390003,0.02651574,63720.0,63714.0,0.16482798]
[1724443390233,0.001,63719.0,63714.0,0.17482798]
[1724443390438,0.002,63719.0,63714.0,0.17482798]
[1724443391202,0.001,63719.0,63714.0,0.17482798]
[1724443391814,0.18345274,63720.0,63714.0,0.16482798]
[1724443392118,0.34038874,63720.0,63714.0,0.17382798]
[1724443392367,0.02551574,63720.0,63714.0,0.16482798]
[1724443392926,0.001,63719.0,63714.0,0.17482798]
[1724443393126,0.156939,63719.0,63714.0,0.16482798]
[1724443393340,0.001,63719.0,63714.0,0.16482798]
[1724443393747,0.001,63719.0,63714.0,0.17382798]
[1724443394292,0.001,63719.0,63714.0,0.17696681]
[1724443394500,0.001,63719.0,63714.0,0.17382798]
[1724443394875,0.001,63719.0,63714.0,0.16482798]
[1724443395106,0.002,63719.0,63718.0,0.156941]
[1724443395308,0.002,63719.0,63718.0,0.16400298]
[1724443395897,0.001,63719.0,63718.0,0.16400298]
[1724443396361,0.001,63719.0,63718.0,0.32094398]
[1724443396503,0.002,63719.0,63718.0,1.43139298]
[1724443396733,0.001,63719.0,63718.0,1.11750998]
[1724443397114,0.001,63719.0,63718.0,1.45739298]
[1724443397314,0.001,63719.0,63718.0,1.24150998]
[1724443397545,0.002,63719.0,63718.0,1.55539298]
[1724443397956,0.002,63719.0,63718.0,1.55739298]
[1724443398169,0.001,63719.0,63718.0,1.55739298]
[1724443398373,0.02551574,63720.0,63719.0,0.875595]
[1724443398567,0.02551574,63720.0,63719.0,1.06459798]
[1724443398901,0.02551574,63720.0,63719.0,1.06259798]
[1724443399415,0.02551574,63720.0,63719.0,1.37647598]
[1724443399764,0.02551574,63720.0,63719.0,1.39047598]
[1724443400387,0.02551574,63720.0,63719.0,1.07659798]
[1724443400584,0.02551574,63720.0,63719.0,1.07559798]
[1724443400790,0.02551574,63720.0,63719.0,1.40047598]
[1724443400988,0.02551574,63720.0,63719.0,0.27890298]
[1724443400989,0.02651574,63720.0,63719.0,0.27890298]
[1724443401368,0.02651574,63720.0,63719.0,1.06359798]
[1724443401780,0.02651574,63720.0,63719.0,0.74971998]
[1724443402806,0.02651574,63720.0,63719.0,1.08659798]
[1724443403965,0.02651574,63720.0,63719.0,1.55740798]
[1724443405391,0.02651574,63720.0,63719.0,1.87128598]
[1724443405597,0.02651574,63720.0,63719.0,1.87428598]
[1724443405801,0.02651574,63720.0,63719.0,2.25886398]
[1724443406001,0.02651574,63720.0,63719.0,2.35886398]
[1724443406002,0.00190751,63720.0,63719.0,2.35886398]
[1724443406211,0.02650874,63720.0,63719.0,2.35886398]
[1724443407026,0.02650874,63720.0,63719.0,2.34786398]
[1724443407027,0.02550874,63720.0,63719.0,2.34786398]
[1724443407236,0.02550874,63720.0,63719.0,2.34986398]
[1724443407854,0.02650874,63720.0,63719.0,2.34986398]
[1724443408050,0.02650874,63720.0,63719.0,2.34586398]
[1724443408287,0.02650874,63720.0,63719.0,2.35986398]
[1724443408516,0.02650874,63720.0,63719.0,2.33186398]
[1724443408517,0.02550874,63720.0,63719.0,2.33186398]
[1724443408750,0.02550874,63720.0,63719.0,1.28022998]
[1724443408996,0.02650874,63720.0,63719.0,1.60810798]
[1724443409876,0.02650874,63720.0,63719.0,1.31722998]
[1724443410075,0.02650874,63720.0,63719.0,0.75271298]
[1724443410295,0.02550874,63720.0,63719.0,0.80575198]
[1724443410501,0.02550874,63720.0,63719.0,0.66281298]
[1724443410502,0.02650874,63720.0,63719.0,0.66281298]
[1724443410915,0.02650874,63720.0,63719.0,0.64881298]
[1724443411131,0.02650874,63720.0,63719.0,0.48481]
[1724443411339,0.11330874,63720.0,63719.0,0.49881]
[1724443411747,0.46135091,63720.0,63719.0,0.49881]
[1724443412164,0.46035091,63720.0,63719.0,0.47081]
[1724443412367,0.46035318,63720.0,63719.0,0.48181]
[1724443412576,0.11230874,63720.0,63719.0,0.47081]
[1724443412817,0.46035309,63720.0,63719.0,0.47081]
[1724443413022,0.55430978,63720.0,63719.0,0.47381]
[1724443413421,0.46035309,63720.0,63719.0,0.47381]
[1724443413902,0.46035309,63720.0,63719.0,0.48281]
[1724443414034,0.46135309,63720.0,63719.0,0.48281]
[1724443414435,0.46035309,63720.0,63719.0,0.47381]
[1724443414884,0.55430439,63720.0,63719.0,0.47381]
[1724443415053,0.46035291,63720.0,63719.0,0.47381]
[1724443415481,0.09597041,63720.0,63719.0,0.63481298]
[1724443415680,0.09597041,63720.0,63719.0,0.63681298]
[1724443415681,0.02550874,63720.0,63719.0,0.63681298]
[1724443416081,0.02550874,63720.0,63719.0,0.47281]
[1724443416082,0.07248274,63720.0,63719.0,0.47281]
[1724443416360,0.33780641,63720.0,63719.0,0.47281]
[1724443416577,1.02321636,63720.0,63719.0,0.47281]
[1724443419464,1.02320904,63720.0,63719.0,0.47281]
[1724443419680,1.33708204,63720.0,63719.0,0.47281]
[1724443419891,1.62841693,63720.0,63719.0,0.47281]
[1724443420245,1.62841693,63720.0,63719.0,0.47081]
[1724443420246,2.15805331,63720.0,63719.0,0.47081]
[1724443420471,2.15805331,63720.0,63719.0,0.47181]
[1724443420472,2.87242656,63720.0,63719.0,0.47181]
[1724443420675,2.87788478,63720.0,63719.0,0.47181]
[1724443420873,2.87688478,63720.0,63719.0,0.47181]
[1724443421165,2.88088478,63720.0,63719.0,0.47181]
[1724443421584,2.87688478,63720.0,63719.0,0.47181]
[1724443421777,2.712906,63720.0,63719.0,0.47081]
[1724443421989,2.725906,63720.0,63719.0,0.47181]
[1724443422395,2.722906,63720.0,63719.0,0.47181]
[1724443423517,2.724906,63720.0,63719.0,0.47281]
[1724443424047,2.88888478,63720.0,63719.0,0.47281]
[1724443424250,2.727906,63720.0,63719.0,0.47281]
[1724443424655,2.724906,63720.0,63719.0,0.47281]
[1724443425062,2.725906,63720.0,63719.0,0.47281]
[1724443425564,2.8832049,63720.0,63719.0,0.47281]
[1724443425782,2.724906,63720.0,63719.0,0.47281]
[1724443425987,2.727906,63720.0,63719.0,0.47281]
[1724443426603,2.89188478,63720.0,63719.0,0.47281]
[1724443428598,2.81490807,63720.0,63719.0,0.47281]
[1724443428797,2.79965425,63720.0,63719.0,0.47281]
[1724443429016,3.13852725,63720.0,63719.0,0.47281]
[1724443429232,3.21545747,63720.0,63719.0,0.47281]
[1724443429436,3.36535169,63720.0,63719.0,0.47281]
[1724443429610,3.05147869,63720.0,63719.0,0.47281]
[1724443431495,3.36535169,63720.0,63719.0,0.378646]
[1724443431689,3.36535169,63720.0,63719.0,0.149206]
[1724443431948,3.52933047,63720.0,63719.0,0.002]
[1724443432456,3.11082243,63720.0,63719.0,0.002]
[1724443432578,3.11082243,63720.0,63719.0,1e-06]
[1724443433011,2.94684365,63720.0,63719.0,1e-06]
[1724443434513,2.63297065,63720.0,63719.0,1e-06]
[1724443435169,2.55604043,63720.0,63719.0,1e-06]
[1724443436268,1.256357,63714.0,63713.0,1e-08]
[1724443436483,1.70038358,63714.0,63713.0,1e-08]
[1724443436698,1.69738358,63714.0,63713.0,1e-08]
[1724443436913,1.54335998,63714.0,63713.0,1e-08]
[1724443437569,1.85726198,63714.0,63713.0,1e-08]
[1724443437794,1.86326198,63714.0,63713.0,1e-08]
[1724443438689,1.86826198,63714.0,63713.0,1e-08]
[1724443438890,2.03224076,63714.0,63713.0,1e-08]
[1724443439288,1.86226198,63714.0,63713.0,1e-08]
[1724443439531,1.85726198,63714.0,63713.0,1e-08]
[1724443439726,1.88126198,63714.0,63713.0,0.00100001]
[1724443440107,1.53935998,63714.0,63713.0,0.00100001]
[1724443440314,1.46935998,63714.0,63713.0,0.00100001]
[1724443441236,0.024,63714.0,63713.0,0.00100001]
[1724443441410,0.024,63714.0,63713.0,0.08340001]
[1724443441782,0.024,63714.0,63713.0,0.31620299]
[1724443441935,0.024,63714.0,63713.0,1.10096999]
[1724443442150,0.012,63714.0,63713.0,0.47315599]
[1724443442348,0.024,63714.0,63713.0,0.47315599]
[1724443442556,0.012,63714.0,63713.0,1.09996999]
[1724443442711,0.012,63714.0,63713.0,1.10396999]
[1724443443080,0.02550874,63720.0,63719.0,0.784695]
[1724443443326,0.02550874,63720.0,63719.0,1.73595398]
[1724443443534,0.49229154,63749.0,63725.0,1.255568]
[1724443443736,0.07013101,63757.0,63725.0,1.44357098]
[1724443443947,0.07013101,63759.0,63725.0,1.44557098]
[1724443444147,0.07013101,63759.0,63728.0,1.248515]
[1724443444148,0.313682,63759.0,63728.0,1.248515]
[1724443444348,0.156841,63759.0,63728.0,1.43751798]
[1724443444794,0.00090751,63760.0,63737.0,0.0849]
[1724443445000,0.00090751,63760.0,63745.0,0.156874]
[1724443445170,0.00090751,63760.0,63746.0,0.40891189]
[1724443445377,0.0245966,63755.0,63747.0,0.0669]
[1724443445585,0.0245966,63755.0,63748.0,0.1671399]
[1724443446075,0.0245966,63755.0,63749.0,0.0836]
[1724443446234,0.0245966,63755.0,63750.0,0.16400298]
[1724443446831,0.0255966,63755.0,63750.0,0.16400298]
[1724443447225,0.0255966,63755.0,63749.0,0.0836]
[1724443447417,0.0245966,63755.0,63749.0,0.24760298]
[1724443447645,0.0245966,63755.0,63750.0,0.16400298]
[1724443448379,0.0255966,63755.0,63750.0,0.16400298]
[1724443448585,0.156855,63753.0,63749.0,0.0836]
[1724443448788,0.0255966,63755.0,63749.0,0.0836]
[1724443448789,0.1834486,63755.0,63750.0,0.01]
[1724443448994,0.1834486,63755.0,63750.0,0.17400298]
[1724443448995,0.0265966,63755.0,63750.0,0.17400298]
[1724443450255,0.0255966,63755.0,63750.0,0.17400298]
[1724443450486,0.001,63753.0,63750.0,0.17400298]
[1724443450985,0.02650411,63755.0,63750.0,0.17400298]
[1724443451200,0.02750411,63755.0,63750.0,0.17400298]
[1724443451649,0.02550411,63755.0,63750.0,0.16400298]
[1724443451856,0.18235511,63755.0,63750.0,0.16400298]
[1724443452087,0.002,63753.0,63750.0,0.01]
[1724443452365,0.002,63753.0,63749.0,0.0836]
[1724443452564,0.002,63753.0,63750.0,0.01]
[1724443452776,0.47058,63751.0,63750.0,0.01]
[1724443453395,0.156866,63749.0,63741.0,0.0816]
[1724443453631,0.156866,63749.0,63742.0,0.16400298]
[1724443453836,0.156867,63749.0,63742.0,0.16400298]
[1724443454038,0.156868,63748.0,63742.0,0.16400298]
[1724443454247,0.15687,63747.0,63742.0,0.16400298]
[1724443454456,0.156879,63744.0,63741.0,0.0816]
[1724443454746,0.31374,63747.0,63740.0,0.0683]
[1724443454982,0.156877,63744.0,63740.0,0.0683]
[1724443455212,0.15688,63743.0,63740.0,0.0683]
[1724443455834,0.156881,63743.0,63740.0,0.0683]
[1724443456038,0.001,63744.0,63741.0,0.17300298]
[1724443456241,0.0245996,63748.0,63741.0,0.17300298]
[1724443456242,0.0245996,63748.0,63742.0,0.0823]
[1724443456448,0.0245996,63748.0,63742.0,0.24630298]
[1724443456651,0.001,63743.0,63742.0,0.24630298]
[1724443459387,0.001,63743.0,63742.0,0.24630298]
[1724443459592,0.001,63743.0,63742.0,0.25530298]
[1724443460814,0.002,63743.0,63742.0,0.25530298]
[1724443461641,0.002,63743.0,63742.0,0.009]
[1724443464152,0.002,63743.0,63742.0,0.17300298]
[1724443464368,0.002,63743.0,63742.0,0.80254898]
[1724443464618,0.002,63743.0,63742.0,0.33190298]
[1724443464905,0.002,63743.0,63742.0,0.48878498]
[1724443465311,0.002,63743.0,63742.0,0.80254898]
[1724443465517,0.001,63743.0,63742.0,0.79354898]
[1724443465933,0.002,63743.0,63742.0,0.80254898]
[1724443466171,0.001,63743.0,63742.0,1.42207698]
[1724443466382,0.002,63743.0,63742.0,1.45107698]
[1724443466593,0.003,63743.0,63742.0,1.14531298]
[1724443466799,0.001,63743.0,63742.0,0.79954898]
[1724443467209,0.001,63743.0,63742.0,0.80254898]
[1724443467622,0.002,63743.0,63742.0,0.80854898]
[1724443468040,0.001,63743.0,63742.0,0.80254898]
[1724443468254,0.001,63743.0,63742.0,1.10731298]
[1724443468462,0.00090751,63744.0,63743.0,0.555438]
[1724443468661,0.00090751,63744.0,63743.0,1.03319998]
[1724443468882,0.00090751,63744.0,63743.0,1.52683998]
[1724443469299,0.00090751,63744.0,63743.0,1.19008098]
[1724443469507,0.00090751,63744.0,63743.0,0.87632198]
[1724443470156,0.00090751,63744.0,63743.0,0.73344298]
[1724443470365,0.00190751,63744.0,63743.0,0.73944298]
[1724443470568,0.00190751,63744.0,63743.0,0.89632198]
[1724443470975,0.00090751,63744.0,63743.0,0.73344298]
[1724443471175,0.00090751,63744.0,63743.0,0.89032198]
[1724443471636,0.00090751,63744.0,63743.0,1.19008098]
[1724443471849,0.00290751,63744.0,63743.0,1.52383998]
[1724443472115,0.00290751,63744.0,63743.0,1.83759898]
[1724443472323,0.00190751,63744.0,63743.0,2.01659898]
[1724443472553,0.00190751,63744.0,63743.0,2.03059898]
[1724443472759,0.00290751,63744.0,63743.0,2.03059898]
[1724443472914,0.00190751,63744.0,63743.0,2.01659898]
[1724443473127,0.00090751,63755.0,63754.0,1.098967]
[1724443473331,0.00090751,63755.0,63754.0,1.57262498]
[1724443473507,0.00090751,63755.0,63754.0,0.78836298]
[1724443474345,0.02550186,63755.0,63754.0,0.94521498]
[1724443474738,0.02650186,63755.0,63754.0,0.80236298]
[1724443475051,0.02550186,63755.0,63754.0,0.78836298]
[1724443475872,0.02550186,63755.0,63754.0,0.73336298]
[1724443476714,0.02650186,63755.0,63754.0,0.74736298]
[1724443477279,0.02650186,63755.0,63754.0,1.21791998]
[1724443477533,0.02650186,63755.0,63754.0,0.73336298]
[1724443477730,0.02650186,63755.0,63754.0,0.89021498]
[1724443477929,0.02650186,63755.0,63754.0,0.74736298]
[1724443478357,0.02650186,63755.0,63754.0,0.73336298]
[1724443478536,0.02650186,63755.0,63754.0,0.89021498]
[1724443478750,0.02650186,63755.0,63754.0,0.73336298]
[1724443479174,0.02650186,63755.0,63754.0,1.21791998]
[1724443479595,0.00190751,63755.0,63754.0,1.53162498]
[1724443479795,0.00190751,63755.0,63754.0,1.21791998]
[1724443480327,0.00190751,63755.0,63754.0,1.53162498]
[1724443480535,0.00190751,63755.0,63754.0,1.21791998]
[1724443480738,0.00190751,63755.0,63754.0,1.53162498]
[1724443480960,0.00190751,63755.0,63754.0,1.62412498]
[1724443481176,0.00190751,63755.0,63754.0,2.35553498]
[1724443481388,0.009086,63771.0,63770.0,0.001]